bitfinex/quotes_SOLUSD_20230101
["timestamp","ask_amount","ask_price","bid_price","bid_amount"]
[1672541835737,12.58009198,10.037,10.032,40.0]
[1672541836590,12.58009198,10.037,10.031,318.3]
[1672541841838,12.58009198,10.037,10.032,40.0]
[1672541842909,12.58009198,10.037,10.031,318.3]
[1672541843851,12.58009198,10.037,10.031,20.0]
[1672541844041,12.58009198,10.037,10.03,20.0]
[1672541846894,52.58009198,10.037,10.03,35.80730786]
[1672541847839,12.58009198,10.037,10.03,334.10730786]
[1672541849307,12.58009198,10.037,10.031,40.0]
[1672541851518,12.58009198,10.037,10.032,15.80730786]
[1672541851922,12.58009198,10.037,10.031,40.0]
[1672541855077,12.58009198,10.037,10.033,40.0]
[1672541855937,12.58009198,10.037,10.032,298.3]
[1672541857208,12.58009198,10.037,10.033,40.0]
[1672541858754,12.58009198,10.037,10.032,298.3]
[1672541859622,12.58009198,10.037,10.033,40.0]
[1672541860431,12.58009198,10.037,10.031,338.3]
[1672541862150,12.58009198,10.037,10.031,298.3]
[1672541868444,12.58009198,10.037,10.032,40.0]
[1672541868774,40.0,10.036,10.03,20.0]
[1672541868964,40.0,10.036,10.016,40.0]
[1672541868965,74.51422655,10.033,10.016,40.0]
[1672541869175,40.0,10.031,10.019,23.5041]
[1672541869389,40.0,10.031,10.02,20.0]
[1672541869607,40.0,10.031,10.02,60.0]
[1672541869815,40.0,10.031,10.021,298.3]
[1672541870028,35.44678052,10.03,10.021,298.3]
[1672541870542,35.44678052,10.03,10.022,40.0]
[1672541870747,35.44678052,10.03,10.021,361.01221639]
[1672541871177,35.44678052,10.03,10.022,40.0]
[1672541874449,35.44678052,10.03,10.023,298.3]
[1672541874872,40.0,10.029,10.023,298.3]
[1672541875598,75.44678052,10.03,10.021,338.3]
[1672541875817,12.47424185,10.028,10.021,298.3]
[1672541878443,12.47424185,10.028,10.022,40.0]
[1672541882535,12.47424185,10.028,10.021,338.3]
[1672541882748,12.47424185,10.028,10.022,40.0]
[1672541882961,12.47424185,10.028,10.021,412.40010564]
[1672541883170,12.47424185,10.028,10.021,428.2074135]
[1672541883382,12.47424185,10.028,10.022,40.0]
[1672541883813,12.47424185,10.028,10.023,298.3]
[1672541887790,12.47424185,10.028,10.022,74.10010564]
[1672541888015,12.47424185,10.028,10.021,298.3]
[1672541888841,12.47424185,10.028,10.02,318.3]
[1672541890006,12.47424185,10.028,10.021,40.0]
[1672541891161,52.47424185,10.028,10.02,358.3]
[1672541891595,12.47424185,10.028,10.02,318.3]
[1672541893048,12.47424185,10.028,10.021,40.0]
[1672541893479,52.47424185,10.028,10.02,318.3]
[1672541895479,52.47424185,10.028,10.02,20.0]
[1672541895695,74.9,10.027,10.02,20.0]
[1672541895900,127.37424185,10.028,10.02,20.0]
[1672541907055,127.37424185,10.028,10.02,42.6529]
[1672541917253,87.37424185,10.028,10.02,42.6529]
[1672541921024,40.0,10.027,10.02,42.6529]
[1672541921648,127.37424185,10.028,10.02,42.6529]
[1672541921863,12.45069379,10.026,10.02,42.6529]
[1672541923147,74.9,10.028,10.02,42.6529]
[1672541924623,40.0,10.027,10.02,42.6529]
[1672541925039,52.462469,10.027,10.02,42.6529]
[1672541925449,12.462469,10.027,10.02,42.6529]
[1672541925887,12.462469,10.027,10.021,40.0]
[1672541928093,214.4315,10.029,10.021,40.0]
[1672541928285,214.4315,10.029,10.021,361.1896]
[1672541929045,12.47424185,10.028,10.021,361.1896]
[1672541972845,12.47424185,10.028,10.021,22.8896]
[1672541973804,12.47424185,10.028,10.022,40.0]
[1672541979595,12.47424185,10.028,10.021,361.1896]
[1672541981381,52.47424185,10.028,10.021,321.1896]
[1672541981593,12.47424185,10.028,10.021,321.1896]
[1672541985804,12.47424185,10.028,10.022,40.0]
[1672541986203,12.47424185,10.028,10.021,361.1896]
[1672541988750,12.47424185,10.028,10.022,40.0]
[1672541988942,12.47424185,10.028,10.021,361.1896]
[1672541989146,12.47424185,10.028,10.022,40.0]
[1672541989780,12.47424185,10.028,10.022,39.92348418]
[1672541989986,12.47424185,10.028,10.022,40.0]
[1672541990220,12.47424185,10.028,10.021,361.1896]
[1672541990721,12.47424185,10.028,10.022,40.0]
[1672541993690,12.47424185,10.028,10.021,361.1896]
[1672541994118,12.47424185,10.028,10.022,40.0]
[1672541994955,12.47424185,10.028,10.021,361.1896]
[1672541995150,12.47424185,10.028,10.022,40.0]
[1672542001786,12.47424185,10.028,10.021,361.1896]
[1672542002312,52.47424185,10.028,10.021,22.8896]
[1672542002918,12.47424185,10.028,10.021,22.8896]
[1672542003772,52.47424185,10.028,10.021,22.8896]
[1672542003987,12.47424185,10.028,10.021,62.8896]
[1672542004524,12.47424185,10.028,10.021,22.8896]
[1672542004714,52.47424185,10.028,10.021,22.8896]
[1672542006087,12.47424185,10.028,10.021,22.8896]
[1672542006297,52.47424185,10.028,10.021,22.8896]
[1672542008410,127.37424185,10.028,10.021,22.8896]
[1672542011017,198.64805868,10.028,10.021,22.8896]
[1672542011229,74.51422655,10.024,10.018,21.0]
[1672542011446,74.93,10.023,10.018,21.0]
[1672542011663,40.0,10.022,10.018,21.0]
[1672542011991,74.95,10.021,10.018,21.0]
[1672542012387,114.94,10.022,10.018,21.0]
[1672542013033,114.94,10.022,10.009,21.02]
[1672542013253,160.4488,10.021,10.01,20.0]
[1672542013566,40.0,10.02,10.01,318.3]
[1672542013778,251.3172,10.02,10.01,318.3]
[1672542015121,176.3572,10.02,10.01,318.3]
[1672542015335,176.3572,10.02,10.01,358.3]
[1672542015763,176.3572,10.02,10.01,318.3]
[1672542016918,176.3572,10.02,10.01,341.7594]
[1672542019127,176.3572,10.02,10.01,43.4594]
[1672542019330,74.96,10.019,10.01,43.4594]
[1672542019547,40.0,10.018,10.01,43.4594]
[1672542019746,74.98,10.017,10.01,43.4594]
[1672542020081,40.0,10.016,10.01,43.4594]
[1672542022827,12.32101136,10.015,10.01,43.4594]
[1672542023011,87.31101136,10.015,10.01,43.4594]
[1672542023418,12.32101136,10.015,10.01,43.4594]
[1672542025099,12.32101136,10.015,10.01,362.7894]
[1672542025309,12.32101136,10.015,10.01,64.4894]
[1672542025743,64.8713,10.018,10.01,64.4894]
[1672542026167,24.8713,10.018,10.01,362.7894]
[1672542026372,24.8713,10.018,10.011,40.0]
[1672542027641,12.34461117,10.017,10.011,40.0]
[1672542028376,12.34461117,10.017,10.01,426.73539189]
[1672542028582,12.34461117,10.017,10.01,64.4894]
[1672542029196,74.99,10.016,10.01,64.4894]
[1672542029618,87.32461117,10.017,10.01,64.4894]
[1672542030458,40.0,10.016,10.01,64.4894]
[1672542030669,87.32461117,10.017,10.01,64.4894]
[1672542030880,52.34461117,10.017,10.01,64.4894]
[1672542032674,12.34461117,10.017,10.01,64.4894]
[1672542033313,12.34461117,10.017,10.01,362.7894]
[1672542033723,12.34461117,10.017,10.01,64.4894]
[1672542034263,12.34461117,10.017,10.01,362.7894]
[1672542035824,12.34461117,10.017,10.011,40.0]
[1672542036978,12.34461117,10.017,10.01,104.4894]
[1672542037188,12.34461117,10.017,10.01,64.4894]
[1672542038875,12.34461117,10.017,10.01,362.7894]
[1672542039288,12.34461117,10.017,10.011,40.0]
[1672542039508,12.34461117,10.017,10.01,64.4894]
[1672542039718,12.34461117,10.017,10.01,362.7894]
[1672542040036,12.34461117,10.017,10.011,40.0]
[1672542042140,12.34461117,10.017,10.011,55.80730786]
[1672542042331,12.34461117,10.017,10.013,40.0]
[1672542043708,24.8713,10.018,10.013,40.0]
[1672542044242,24.8713,10.018,10.012,338.3]
[1672542044764,12.34461117,10.017,10.012,338.3]
[1672542045273,12.34461117,10.017,10.012,298.3]
[1672542046756,12.34461117,10.017,10.013,40.0]
[1672542047915,24.8713,10.018,10.013,40.0]
[1672542048658,12.33281244,10.016,10.013,40.0]
[1672542049707,24.8713,10.018,10.013,40.0]
[1672542051582,24.8713,10.018,10.012,338.3]
[1672542051794,12.34461117,10.017,10.013,40.0]
[1672542052124,12.34461117,10.017,10.012,338.3]
[1672542052879,12.34461117,10.017,10.013,40.0]
[1672542053807,24.8713,10.018,10.013,40.0]
[1672542054018,24.8713,10.018,10.012,338.3]
[1672542054205,24.8713,10.018,10.013,40.0]
[1672542054422,24.8713,10.018,10.012,338.3]
[1672542055473,24.8713,10.018,10.012,298.3]
[1672542058119,24.8713,10.018,10.013,40.0]
[1672542059690,24.8713,10.018,10.012,338.3]
[1672542060111,24.8713,10.018,10.01,402.7894]
[1672542060324,24.8713,10.018,10.01,432.7894]
[1672542060944,24.8713,10.018,10.01,402.7894]
[1672542061483,24.8713,10.018,10.01,64.4894]
[1672542061698,40.0,10.017,10.01,64.4894]
[1672542062097,64.8713,10.018,10.01,64.4894]
[1672542062849,40.0,10.017,10.01,64.4894]
[1672542063045,114.98,10.017,10.01,64.4894]
[1672542063577,74.98,10.017,10.01,362.7894]
[1672542063791,99.8413,10.018,10.01,362.7894]
[1672542064427,24.8713,10.018,10.01,362.7894]
[1672542064748,12.34461117,10.017,10.01,362.7894]
[1672542064949,52.34461117,10.017,10.01,362.7894]
[1672542065584,52.34461117,10.017,10.01,64.4894]
[1672542066092,127.32461117,10.017,10.01,64.4894]
[1672542066304,52.34461117,10.017,10.01,64.4894]
[1672542071695,74.99,10.016,10.01,64.4894]
[1672542072416,127.32461117,10.017,10.01,64.4894]
[1672542072629,87.32461117,10.017,10.01,64.4894]
[1672542072839,12.32101136,10.015,10.01,64.4894]
[1672542073878,40.0,10.014,10.01,64.4894]
[1672542074933,40.0,10.014,10.002,298.3]
[1672542074934,75.01,10.013,10.002,298.3]
[1672542075149,40.0,10.012,9.9981,298.3]
[1672542075488,205.6423,10.012,9.999,20.0]
[1672542075779,40.0,10.01,9.999,20.0]
[1672542075998,75.04,10.009,9.999,20.0]
[1672542076182,40.0,10.008,9.9991,298.3]
[1672542076393,62.7996,10.008,10.0,20.0]
[1672542076823,22.7996,10.008,10.0,20.0]
[1672542077459,22.7996,10.008,10.0,35.80730786]
[1672542077654,22.7996,10.008,10.001,40.0]
[1672542078080,22.7996,10.008,10.002,296.3]
[1672542079032,40.0,10.007,10.0,20.0]
[1672542079479,40.0,10.007,9.999,20.0]
[1672542079672,63.5657,10.007,9.999,20.0]
[1672542080327,23.5657,10.007,9.999,20.0]
[1672542080846,12.21469547,10.006,9.999,20.0]
[1672542082950,52.21469547,10.006,9.999,20.0]
[1672542083456,127.27469547,10.006,9.999,20.0]
[1672542083662,52.21469547,10.006,9.999,20.0]
[1672542083877,12.21469547,10.006,9.999,20.0]
[1672542085785,12.21469547,10.006,9.9991,40.0]
[1672542085999,12.21469547,10.006,10.0,20.0]
[1672542087995,12.21469547,10.006,9.999,20.0]
[1672542088194,52.21469547,10.006,9.999,20.0]
[1672542091037,127.27469547,10.006,9.999,20.0]
[1672542091249,52.21469547,10.006,9.999,20.0]
[1672542091995,12.21469547,10.006,9.999,20.0]
[1672542092197,12.21469547,10.006,9.9991,15.80730786]
[1672542092406,12.21469547,10.006,10.0,20.0]
[1672542093039,52.21469547,10.006,10.0,20.0]
[1672542093885,12.21469547,10.006,10.0,20.0]
[1672542094404,12.21469547,10.006,9.999,20.0]
[1672542095464,12.21469547,10.006,9.9991,40.0]
[1672542095868,12.21469547,10.006,9.9992,15.80730786]
[1672542096080,12.21469547,10.006,10.0,20.0]
[1672542099958,12.21469547,10.006,10.0,19.5]
[1672542100379,12.21469547,10.006,9.9981,40.0]
[1672542100603,35.37699547,10.006,9.9981,40.0]
[1672542101340,35.37699547,10.006,9.9991,298.3]
[1672542101547,35.37699547,10.006,10.0,20.0]
[1672542105767,35.37699547,10.006,10.0,19.5]
[1672542106392,35.37699547,10.006,10.001,298.3]
[1672542106705,35.37699547,10.006,10.003,298.3]
[1672542106913,12.21469547,10.006,10.004,40.0]
[1672542107126,12.21469547,10.006,10.005,298.3]
[1672542107333,40.0,10.024,10.005,298.3]
[1672542107334,147.2451,10.023,10.006,12.20990453]
[1672542107552,40.0,10.022,10.008,40.0]
[1672542107756,40.0,10.022,10.009,20.0]
[1672542107757,74.95,10.021,10.009,20.0]
[1672542108388,159.4131,10.02,10.009,20.0]
[1672542108585,74.96,10.019,10.009,20.0]
[1672542108796,99.6085,10.019,10.009,20.0]
[1672542109426,24.6485,10.018,10.009,20.0]
[1672542109651,74.98,10.017,10.009,20.0]
[1672542109842,99.6285,10.017,10.009,20.0]
[1672542110700,11.31492115,10.016,10.009,20.0]
[1672542110908,74.99,10.015,10.009,20.0]
[1672542111842,109.79072115,10.016,10.009,20.0]
[1672542116146,40.0,10.015,10.009,20.0]
[1672542116586,51.30312007,10.015,10.009,20.0]
[1672542118045,11.30312007,10.015,10.009,20.0]
[1672542118464,51.30312007,10.015,10.009,20.0]
[1672542118879,11.30312007,10.015,10.009,20.0]
[1672542124150,51.30312007,10.015,10.009,20.0]
[1672542125307,11.30312007,10.015,10.009,20.0]
[1672542126038,51.30312007,10.015,10.009,20.0]
[1672542126669,11.30312007,10.015,10.009,20.0]
[1672542127403,51.30312007,10.015,10.009,20.0]
[1672542130240,40.0,10.013,10.009,20.0]
[1672542130465,75.02,10.012,10.009,20.0]
[1672542130776,40.0,10.013,10.009,20.0]
[1672542131625,40.0,10.013,10.008,20.0]
[1672542131939,40.0,10.013,10.007,24.8589]
[1672542132131,40.0,10.013,10.002,298.3]
[1672542132132,75.02,10.012,10.002,298.3]
[1672542132340,40.0,10.011,10.002,298.3]
[1672542132866,40.0,10.011,9.9992,298.3]
[1672542132867,64.6735,10.011,9.9992,298.3]
[1672542133096,40.0,10.009,9.9992,298.3]
[1672542133403,24.6735,10.008,10.0,318.3]
[1672542133607,24.6735,10.008,10.001,40.0]
[1672542134019,24.6735,10.008,10.002,298.3]
[1672542134346,24.6735,10.008,10.002,314.10730786]
[1672542134773,11.2086265,10.007,10.002,314.10730786]
[1672542135303,11.2086265,10.007,10.003,40.0]
[1672542136968,11.2086265,10.007,10.002,354.10730786]
[1672542137286,11.2086265,10.007,10.002,338.3]
[1672542137500,11.2086265,10.007,10.003,40.0]
[1672542139070,11.2086265,10.007,10.002,338.3]
[1672542139700,11.2086265,10.007,10.002,298.3]
[1672542146734,11.2086265,10.007,10.003,40.0]
[1672542147792,11.2086265,10.007,10.002,362.19919189]
[1672542154213,11.2086265,10.007,10.0,318.3]
[1672542154932,51.2086265,10.007,10.0,318.3]
[1672542155355,51.2086265,10.007,10.0,20.0]
[1672542155665,51.2086265,10.007,9.999,20.0]
[1672542155872,75.7651265,10.007,9.999,20.0]
[1672542157568,35.7651265,10.007,9.999,20.0]
[1672542158201,40.0,10.006,9.999,20.0]
[1672542158626,11.19680418,10.006,9.9991,40.0]
[1672542158833,11.19680418,10.006,10.0,298.3]
[1672542159042,11.19680418,10.006,10.001,40.0]
[1672542159467,11.19680418,10.006,10.0,298.3]
[1672542160313,11.19680418,10.006,10.001,40.0]
[1672542161892,11.19680418,10.006,10.002,298.3]
[1672542164306,11.19680418,10.006,10.003,40.0]
[1672542164523,11.19680418,10.006,10.002,298.3]
[1672542164719,11.19680418,10.006,10.003,40.0]
[1672542164927,11.19680418,10.006,10.001,149.0293038]
[1672542165141,11.19680418,10.006,10.001,40.0]
[1672542165455,11.19680418,10.006,10.0,338.3]
[1672542168408,11.19680418,10.006,10.0,412.28085078]
[1672542173255,11.19680418,10.006,10.0,356.47354292]
[1672542173467,11.19680418,10.006,10.0,298.3]
[1672542173894,11.19680418,10.006,9.9984,40.0]
[1672542175143,11.19680418,10.006,9.9991,40.0]
[1672542175464,11.19680418,10.006,10.001,40.0]
[1672542178834,11.19680418,10.006,10.0,318.3]
[1672542182487,11.19680418,10.006,10.0,20.0]
[1672542182692,51.19680418,10.006,10.0,20.0]
[1672542182923,126.25680418,10.006,9.998,20.0]
[1672542183129,149.70920418,10.006,9.998,20.0]
[1672542183867,109.70920418,10.006,9.998,20.0]
[1672542184084,109.70920418,10.006,9.9981,40.0]
[1672542184290,34.64920418,10.006,9.999,20.0]
[1672542184607,34.64920418,10.006,9.998,20.0]
[1672542185238,40.0,10.005,9.998,20.0]
[1672542185641,11.18497949,10.005,9.998,20.0]
[1672542187010,40.0,10.004,9.998,20.0]
[1672542187441,115.08,10.004,9.998,20.0]
[1672542187640,11.16132303,10.003,9.998,20.0]
[1672542190686,40.0,10.005,9.998,20.0]
[1672542191647,11.17315244,10.004,9.998,20.0]
[1672542192280,11.17315244,10.004,9.9901,40.0]
[1672542192485,40.0,10.002,9.9901,40.0]
[1672542192701,40.0,10.002,9.9922,15.80730786]
[1672542192907,40.0,10.002,9.9932,298.3]
[1672542193527,40.0,10.002,9.9932,314.10730786]
[1672542193737,40.0,10.002,9.9933,40.0]
[1672542194061,40.0,10.002,9.9932,298.3]
[1672542194686,13.36518853,10.001,9.9933,40.0]
[1672542198807,16.70648567,10.001,9.9933,40.0]
[1672542198998,16.70648567,10.001,9.9932,298.3]
[1672542199209,16.70648567,10.001,9.9933,40.0]
[1672542199623,115.08,10.003,9.9933,40.0]
[1672542199834,75.08,10.003,9.9933,40.0]
[1672542201528,40.0,10.003,9.9933,40.0]
[1672542202775,16.72423688,10.002,9.9933,40.0]
[1672542204274,16.72423688,10.002,9.9944,298.3]
[1672542204576,16.72423688,10.002,9.9955,298.3]
[1672542204789,75.05,10.008,9.996,20.0]
[1672542204999,75.05,10.008,9.9971,40.0]
[1672542205407,75.05,10.008,9.998,20.0]
[1672542206048,75.05,10.008,9.9981,40.0]
[1672542206262,75.03,10.01,9.999,20.0]
[1672542206475,40.0,10.009,9.998,43.3834]
[1672542206675,51.2086265,10.007,9.998,43.3834]
[1672542208266,11.2086265,10.007,9.998,43.3834]
[1672542208779,40.0,10.006,9.998,43.3834]
[1672542209418,115.06,10.006,9.998,43.3834]
[1672542209626,75.06,10.006,9.998,43.3834]
[1672542209832,51.2086265,10.007,9.998,43.3834]
[1672542212256,40.0,10.005,9.998,43.3834]
[1672542212477,75.06,10.006,9.998,43.3834]
[1672542212882,86.25680418,10.006,9.998,43.3834]
[1672542215300,40.0,10.005,9.998,43.3834]
[1672542215507,86.25680418,10.006,9.9981,40.0]
[1672542215723,11.18497949,10.005,9.999,20.0]
[1672542217096,51.18497949,10.005,9.999,20.0]
[1672542218369,11.18497949,10.005,9.999,20.0]
[1672542219432,40.0,10.004,9.999,20.0]
[1672542220669,11.16132303,10.003,9.999,20.0]
[1672542221614,40.0,10.005,9.999,20.0]
[1672542221829,75.06,10.006,9.999,20.0]
[1672542222054,75.05,10.008,9.999,20.0]
[1672542222245,75.05,10.008,9.999,43.89]
[1672542223319,40.0,10.007,9.999,43.89]
[1672542223532,75.06,10.006,9.999,43.89]
[1672542225422,149.5860265,10.007,9.999,43.89]
[1672542226986,74.5360265,10.007,9.999,43.89]
[1672542232904,34.5360265,10.007,9.999,43.89]
[1672542233097,74.5360265,10.007,9.999,43.89]
[1672542234673,75.06,10.006,9.999,43.89]
[1672542234884,149.5860265,10.007,9.999,43.89]
[1672542235633,40.0,10.006,9.999,43.89]
[1672542236461,75.07,10.005,9.999,43.89]
[1672542236790,86.25497949,10.005,9.999,43.89]
[1672542236999,11.18497949,10.005,9.999,43.89]
[1672542239186,11.18497949,10.005,9.9991,40.0]
[1672542239403,11.18497949,10.005,10.0,20.0]
[1672542239724,23.3274,10.007,10.0,20.0]
[1672542240762,11.19680418,10.006,10.0,20.0]
[1672542256113,11.19680418,10.006,10.002,298.3]
[1672542256538,11.19680418,10.006,10.003,40.0]
[1672542257697,11.19680418,10.006,10.001,67.79839764]
[1672542258139,11.19680418,10.006,10.0,318.3]
[1672542260129,11.19680418,10.006,10.0,20.0]
[1672542262218,11.19680418,10.006,10.001,40.0]
[1672542267472,11.19680418,10.006,10.0,318.3]
[1672542268645,11.19680418,10.006,10.001,40.0]
[1672542274536,11.19680418,10.006,10.0,358.3]
[1672542275360,11.19680418,10.006,10.001,40.0]
[1672542277266,11.19680418,10.006,10.0,358.3]
[1672542277576,11.19680418,10.006,10.001,40.0]
[1672542288197,11.19680418,10.006,10.0,20.0]
[1672542289559,11.19680418,10.006,10.0,60.0]
[1672542290209,51.19680418,10.006,10.0,20.0]
[1672542291656,11.19680418,10.006,10.0,20.0]
[1672542291861,51.19680418,10.006,10.0,20.0]
[1672542294403,11.19680418,10.006,10.0,20.0]
[1672542294736,51.19680418,10.006,10.0,20.0]
[1672542295880,11.19680418,10.006,10.0,20.0]
[1672542316590,11.19680418,10.006,9.9969,67.79839764]
[1672542316921,11.19680418,10.006,9.9923,361.5830643]
[1672542316922,40.0,10.004,9.9923,361.5830643]
[1672542317327,40.0,10.004,9.9924,361.5830643]
[1672542317737,11.15177473,10.003,9.9925,361.5830643]
[1672542317972,11.15177473,10.003,9.9926,40.0]
[1672542318198,11.15177473,10.003,9.9926,401.5830643]
[1672542318897,11.15177473,10.003,9.9938,40.0]
[1672542319538,11.15177473,10.003,9.9948,298.3]
[1672542319734,11.15177473,10.003,9.9949,40.0]
[1672542319949,11.15177473,10.003,9.9948,298.3]
[1672542320376,11.15177473,10.003,9.9949,40.0]
[1672542320797,11.15177473,10.003,9.9948,298.3]
[1672542321546,11.15177473,10.003,9.9938,63.2830643]
[1672542322505,11.15177473,10.003,9.9938,361.5830643]
[1672542325329,11.15177473,10.003,9.9939,40.0]
[1672542325539,11.15177473,10.003,9.9938,361.5830643]
[1672542326493,11.15177473,10.003,9.99,298.3]
[1672542326688,11.15177473,10.003,9.9914,295.8]
[1672542327222,11.15177473,10.003,9.9925,295.8]
[1672542327639,11.15177473,10.003,9.9937,40.0]
[1672542328386,11.15177473,10.003,9.9936,295.8]
[1672542328909,53.38212968,10.005,9.9936,295.8]
[1672542329223,53.38212968,10.005,9.9937,40.0]
[1672542330888,53.38212968,10.005,9.9936,295.8]
[1672542332570,913.81583652,10.005,9.9936,295.8]
[1672542335099,913.81583652,10.005,9.9937,40.0]
[1672542335420,913.81583652,10.005,9.9936,295.8]
[1672542335640,988.88583652,10.005,9.9936,295.8]
[1672542335832,913.81583652,10.005,9.9936,295.8]
[1672542337107,75.08,10.004,9.9936,295.8]
[1672542337314,75.08,10.004,9.9937,40.0]
[1672542337633,40.0,10.003,9.9936,295.8]
[1672542341722,14.3026754,10.002,9.9936,295.8]
[1672542343313,14.3026754,10.002,9.9926,361.5830643]
[1672542343724,14.3026754,10.002,9.9926,298.3]
[1672542346355,14.3026754,10.002,9.9927,40.0]
[1672542346557,14.3026754,10.002,9.9926,298.3]
[1672542347524,14.3026754,10.002,9.9927,40.0]
[1672542347836,14.3026754,10.002,9.9937,298.3]
[1672542348145,38.7443754,10.002,9.9937,298.3]
[1672542348383,38.7443754,10.002,9.9938,40.0]
[1672542349955,38.7443754,10.002,9.9937,361.5830643]
[1672542351531,14.3026754,10.002,9.9937,361.5830643]
[1672542351722,14.3026754,10.002,9.9927,40.0]
[1672542352879,162.373283,10.004,9.9926,298.3]
[1672542356695,162.373283,10.004,9.9927,40.0]
[1672542357605,54.273783,10.004,9.9927,40.0]
[1672542358049,54.273783,10.004,9.9939,40.0]
[1672542358237,14.273783,10.004,9.9939,40.0]
[1672542359416,14.273783,10.004,9.9938,298.3]
[1672542359627,14.273783,10.004,9.9939,40.0]
[1672542359838,14.273783,10.004,9.9938,298.3]
[1672542360659,14.273783,10.004,9.9939,40.0]
[1672542365186,14.273783,10.004,9.9938,298.3]
[1672542365622,14.273783,10.004,9.9939,40.0]
[1672542366339,14.273783,10.004,9.995,298.3]
[1672542366574,14.273783,10.004,9.996,20.0]
[1672542367830,129.34140669,10.007,9.996,20.0]
[1672542368039,129.34140669,10.007,9.9961,40.0]
[1672542368250,129.34140669,10.007,9.997,20.0]
[1672542368683,129.34140669,10.007,9.997,44.5808]
[1672542368914,89.34140669,10.007,9.9971,40.0]
[1672542369097,14.29140669,10.007,9.9971,40.0]
[1672542369312,14.29140669,10.007,9.998,20.0]
[1672542375633,54.29140669,10.007,9.998,20.0]
[1672542376349,40.0,10.006,9.998,20.0]
[1672542376769,54.31442638,10.006,9.998,20.0]
[1672542378657,14.31442638,10.006,9.998,20.0]
[1672542380335,89.37442638,10.006,9.998,20.0]
[1672542380855,14.31442638,10.006,9.998,20.0]
[1672542381067,14.31442638,10.006,9.9981,40.0]
[1672542381302,14.31442638,10.006,9.999,20.0]
[1672542381817,23.7936,10.008,9.999,20.0]
[1672542382007,23.7936,10.008,9.9971,40.0]
[1672542382008,23.7936,10.008,9.998,44.0302]
[1672542382542,75.05,10.007,9.998,44.0302]
[1672542382757,14.32593277,10.007,9.998,44.0302]
[1672542382966,14.32593277,10.007,9.9981,40.0]
[1672542383276,54.32593277,10.007,9.999,20.0]
[1672542383897,14.32593277,10.007,9.999,20.0]
[1672542384315,54.32593277,10.007,9.999,20.0]
[1672542386118,14.32593277,10.007,9.999,20.0]
[1672542387486,14.32593277,10.007,9.9991,40.0]
[1672542387697,14.32593277,10.007,10.0,20.0]
[1672542388332,54.32593277,10.007,10.0,20.0]
[1672542388640,54.32593277,10.007,9.9981,40.0]
[1672542388641,54.32593277,10.007,9.999,20.0]
[1672542389061,14.32593277,10.007,9.999,20.0]
[1672542389462,54.32593277,10.007,9.999,20.0]
[1672542390304,14.32593277,10.007,9.999,20.0]
[1672542390508,54.32593277,10.007,9.999,20.0]
[1672542390723,14.32593277,10.007,9.9991,40.0]
[1672542390955,14.32593277,10.007,10.0,20.0]
[1672542396410,54.32593277,10.007,9.999,20.0]
[1672542396623,14.32593277,10.007,9.999,20.0]
[1672542403366,14.32593277,10.007,9.9991,40.0]
[1672542403558,14.32593277,10.007,10.0,20.0]
[1672542405978,14.32593277,10.007,10.0,35.80730786]
[1672542406180,14.32593277,10.007,10.001,40.0]
[1672542406395,14.32593277,10.007,10.002,298.3]
[1672542406606,14.32593277,10.007,10.003,40.0]
[1672542413325,14.32593277,10.007,10.005,40.0]
[1672542413757,14.32593277,10.007,10.006,298.3]